bitfinex-derivatives/quotes_BTCF0:USTF0_20250504
["timestamp","ask_amount","ask_price","bid_price","bid_amount"]
[1746317996648,0.3263767,95956.0,95955.0,0.21972033]
[1746317996848,0.3889767,95956.0,95955.0,0.21972033]
[1746317999868,0.3929767,95956.0,95955.0,0.21972033]
[1746318000365,0.3929767,95956.0,95955.0,0.00787865]
[1746318000560,0.2083876,95951.0,95950.0,0.5691888]
[1746318001572,0.2724876,95951.0,95950.0,0.5691888]
[1746318002069,0.2734876,95951.0,95950.0,0.57702083]
[1746318003071,0.2754876,95951.0,95950.0,0.57702083]
[1746318005767,0.2754876,95951.0,95950.0,0.62264236]
[1746318006168,0.2754876,95951.0,95950.0,0.57702083]
[1746318006369,0.2754876,95951.0,95950.0,0.62262047]
[1746318007376,0.2754876,95951.0,95950.0,0.57702083]
[1746318012575,0.2754876,95951.0,95950.0,0.64102083]
[1746318012772,0.003,95951.0,95950.0,0.64102083]
[1746318012978,0.2113876,95951.0,95950.0,0.68659862]
[1746318015580,0.2093876,95951.0,95950.0,0.68659862]
[1746318015783,0.2103876,95951.0,95950.0,0.68659862]
[1746318016079,0.2103876,95951.0,95950.0,0.64102083]
[1746318016475,0.2103876,95951.0,95950.0,0.68660433]
[1746318019881,0.2103876,95951.0,95950.0,0.47821553]
[1746318020178,0.2103876,95951.0,95950.0,0.40023203]
[1746318020179,0.2433876,95951.0,95950.0,0.40023203]
[1746318023888,0.2433876,95951.0,95950.0,0.36863203]
[1746318024186,0.2433876,95951.0,95950.0,0.19592885]
[1746318027791,0.2433876,95951.0,95950.0,0.20393439]
[1746318027990,0.2433876,95951.0,95950.0,0.00800554]
[1746318028190,0.2083941,95948.0,95947.0,0.03]
[1746318028392,0.2083941,95948.0,95947.0,0.075641]
[1746318029490,0.2399941,95948.0,95947.0,0.075641]
[1746318029691,0.2703941,95948.0,95947.0,0.075641]
[1746318031294,0.2713941,95948.0,95947.0,0.075641]
[1746318032692,0.2713941,95948.0,95947.0,0.08338785]
[1746318033193,0.3893941,95948.0,95947.0,0.08338785]
[1746318034297,0.2713941,95948.0,95947.0,0.08338785]
[1746318034693,0.2713941,95948.0,95947.0,0.29178405]
[1746318034895,0.2103941,95948.0,95947.0,0.29178405]
[1746318035192,0.002,95948.0,95947.0,0.29178405]
[1746318036793,0.2103941,95948.0,95947.0,0.29178405]
[1746318038794,0.2103941,95948.0,95947.0,0.86442573]
[1746318040596,0.2103941,95948.0,95947.0,0.50362573]
[1746318040795,0.2103941,95948.0,95947.0,0.86442573]
[1746318046597,0.2103941,95948.0,95947.0,0.65258405]
[1746318047092,0.2103941,95948.0,95947.0,0.68588405]
[1746318047492,0.002,95948.0,95947.0,0.68588405]
[1746318048694,0.001,95948.0,95947.0,0.68588405]
[1746318048891,0.001,95948.0,95947.0,0.68688405]
[1746318050200,0.00637,95952.0,95951.0,0.2083876]
[1746318050403,0.00010523,95961.0,95960.0,0.208368]
[1746318050595,0.00010523,95961.0,95960.0,0.614809]
[1746318050799,0.00010523,95961.0,95960.0,0.678109]
[1746318051704,0.00010523,95961.0,95960.0,0.317309]
[1746318052096,0.00210523,95961.0,95960.0,0.317309]
[1746318052300,0.00410523,95961.0,95960.0,0.317309]
[1746318052722,0.21247103,95961.0,95960.0,0.317309]
[1746318052896,0.00410523,95961.0,95960.0,0.317309]
[1746318054801,0.28758339,95980.0,95960.0,0.108941]
[1746318055003,0.07925559,95980.0,95977.0,0.0520824]
[1746318055202,0.0321,95979.0,95978.0,0.3051289]
[1746318055502,0.0321,95979.0,95978.0,0.31550522]
[1746318056311,0.0361,95979.0,95978.0,0.31550522]
[1746318056610,0.2444268,95979.0,95978.0,0.31550522]
[1746318057809,0.2484268,95979.0,95978.0,0.31550522]
[1746318058510,0.004,95979.0,95978.0,0.31550522]
[1746318059607,0.004,95979.0,95978.0,0.41969721]
[1746318060510,0.0520722,95997.0,95978.0,0.41969721]
[1746318060511,0.2083013,95991.0,95989.0,0.2083051]
[1746318060709,0.2388956,95996.0,95995.0,0.208292]
[1746318061010,0.2388956,95996.0,95995.0,0.21623805]
[1746318061512,0.2388956,95996.0,95995.0,0.27743805]
[1746318061713,0.2909682,95996.0,95995.0,0.27743805]
[1746318062411,0.2969682,95996.0,95995.0,0.27743805]
[1746318063916,0.3019682,95996.0,95995.0,0.27743805]
[1746318064613,0.2969682,95996.0,95995.0,0.27743805]
[1746318064917,0.2909682,95996.0,95995.0,0.27743805]
[1746318069916,0.2909682,95996.0,95995.0,0.00794605]
[1746318070112,0.2083072,95988.0,95987.0,0.2083088]
[1746318070912,0.3011072,95988.0,95987.0,0.2083088]
[1746318071119,0.4191072,95988.0,95987.0,0.2083088]
[1746318071316,0.4191072,95988.0,95987.0,0.001]
[1746318071819,0.4191072,95988.0,95987.0,0.002]
[1746318075418,0.7799072,95988.0,95987.0,0.002]
[1746318076821,0.7799072,95988.0,95987.0,0.001]
[1746318077022,0.2083268,95979.0,95977.0,0.2083294]
[1746318077725,0.2083268,95979.0,95978.0,0.2770489]
[1746318078023,0.2729268,95979.0,95978.0,0.2770489]
[1746318078927,0.2729268,95979.0,95978.0,0.2780489]
[1746318079726,0.2729268,95979.0,95978.0,0.2790489]
[1746318081628,0.2729268,95979.0,95978.0,0.3112489]
[1746318085730,0.2729268,95979.0,95978.0,0.35673698]
[1746318086631,0.2729268,95979.0,95978.0,0.3112489]
[1746318087623,0.2729268,95979.0,95978.0,0.002]
[1746318088233,0.3909268,95979.0,95978.0,0.002]
[1746318094035,0.3909268,95979.0,95978.0,0.001]
[1746318094635,0.2083333,95976.0,95975.0,0.15872327]
[1746318095136,0.2083376,95974.0,95973.0,0.39946227]
[1746318095937,0.2709376,95974.0,95973.0,0.39946227]
[1746318096238,0.3899376,95974.0,95973.0,0.39946227]
[1746318098740,0.3899376,95974.0,95973.0,0.240739]
[1746318102138,0.2719376,95974.0,95973.0,0.240739]
[1746318102941,0.2719376,95974.0,95973.0,0.0324]
[1746318104241,0.2719376,95974.0,95973.0,0.2407398]
[1746318111666,0.2719376,95974.0,95973.0,0.2732398]
[1746318111966,0.2396376,95974.0,95973.0,0.2732398]
[1746318112664,0.2386376,95974.0,95973.0,0.2732398]
[1746318114963,0.2396376,95974.0,95973.0,0.2732398]
[1746318115562,0.2386376,95974.0,95973.0,0.2732398]
[1746318121971,0.2386376,95974.0,95973.0,0.31881105]
[1746318129474,0.2083312,95977.0,95976.0,0.2083311]
[1746318129672,0.2083312,95977.0,95976.0,0.25390235]
[1746318129873,0.2083312,95977.0,95976.0,0.34800235]
[1746318130568,0.2103312,95977.0,95976.0,0.34800235]
[1746318131466,0.2418312,95977.0,95976.0,0.34800235]
[1746318143686,0.2418312,95977.0,95976.0,0.13967125]
[1746318144485,0.2418312,95977.0,95976.0,0.0941]
[1746318146295,0.2418312,95977.0,95976.0,0.1396799]
[1746318148590,0.2418312,95977.0,95976.0,0.2984767]
[1746318151591,0.2418312,95977.0,95976.0,0.50681]
[1746318157291,0.2418312,95977.0,95976.0,0.3480132]
[1746318157896,0.2418312,95977.0,95976.0,0.3024333]
[1746318165999,0.2418312,95977.0,95976.0,0.0941]
[1746318166497,0.2418312,95977.0,95976.0,0.0637]
[1746318167099,0.2418312,95977.0,95976.0,0.2720333]
[1746318167992,0.2418312,95977.0,95976.0,0.31758874]
[1746318168394,0.2418312,95977.0,95976.0,0.04555544]
[1746318168792,0.2083376,95974.0,95973.0,0.04555544]
[1746318169094,0.2083398,95973.0,95972.0,0.00156295]
[1746318169291,0.2702398,95973.0,95972.0,0.04712609]
[1746318169491,0.2702398,95973.0,95972.0,0.00156295]
[1746318170187,0.2702398,95973.0,95972.0,5e-08]
[1746318170188,0.3984946,95973.0,95972.0,5e-08]
[1746318170799,0.5026906,95973.0,95972.0,5e-08]
[1746318171791,0.5056906,95973.0,95972.0,5e-08]
[1746318171995,0.5086906,95973.0,95972.0,5e-08]
[1746318172299,0.4044946,95973.0,95972.0,5e-08]
[1746318172995,0.5086906,95973.0,95972.0,5e-08]
[1746318173500,0.5056906,95973.0,95972.0,5e-08]
[1746318173697,0.5086906,95973.0,95972.0,5e-08]
[1746318174000,0.5286906,95973.0,95972.0,5e-08]
[1746318174504,0.0520879,95968.0,95960.0,0.26506404]
[1746318174803,0.2083658,95961.0,95960.0,0.26506404]
[1746318175095,0.3263658,95961.0,95960.0,0.26506404]
[1746318175294,0.2083832,95953.0,95952.0,0.0324]
[1746318176203,0.2716832,95953.0,95952.0,0.0324]
[1746318177390,0.2716832,95953.0,95952.0,0.0334]
[1746318178007,0.2716832,95953.0,95952.0,0.0344]
[1746318181093,0.3896832,95953.0,95952.0,0.0344]
[1746318182108,0.3896832,95953.0,95952.0,0.002]
[1746318183200,0.3896832,95953.0,95952.0,0.0336]
[1746318184310,0.2716832,95953.0,95952.0,0.0336]
[1746318185314,0.3896832,95953.0,95952.0,0.002]
[1746318191318,0.3896832,95953.0,95947.0,0.00774685]
[1746318191530,0.2605082,95944.0,95943.0,0.208404]
[1746318193020,0.2585082,95944.0,95943.0,0.208404]
[1746318193520,0.2401013,95946.0,95945.0,0.2084006]
[1746318193823,0.2083954,95948.0,95947.0,0.2083919]
[1746318194010,0.2083954,95948.0,95947.0,0.5691919]
[1746318194819,0.2083954,95948.0,95947.0,0.6312919]
[1746318203619,0.2083954,95948.0,95947.0,0.4229]
[1746318204728,0.2083954,95948.0,95947.0,0.6312919]
[1746318208930,0.2083954,95948.0,95947.0,0.2704919]
[1746318210431,0.2385954,95948.0,95947.0,0.2704919]
[1746318212425,0.2385954,95948.0,95947.0,0.6312919]
[1746318216331,0.2385954,95948.0,95947.0,0.67690415]
[1746318220226,0.2385954,95948.0,95947.0,0.64590415]
[1746318229138,0.2385954,95948.0,95947.0,0.28510415]
[1746318229834,0.2717954,95948.0,95947.0,0.25400415]
[1746318234137,0.2717954,95948.0,95947.0,0.61480415]
[1746318237046,0.2717954,95948.0,95947.0,0.82679631]
[1746318239445,0.2717954,95948.0,95947.0,0.25760441]
[1746318241354,0.2717954,95948.0,95947.0,0.04561225]
[1746318242953,0.2083962,95947.0,95946.0,0.21199216]
[1746318243148,0.2411962,95947.0,95946.0,0.21199216]
[1746318243349,0.2716962,95947.0,95946.0,0.21199216]
[1746318244165,0.3896962,95947.0,95946.0,0.21199216]
[1746318244557,0.2084028,95944.0,95943.0,0.00771196]
[1746318244867,0.2084049,95943.0,95942.0,0.21199216]
[1746318245067,0.3592049,95943.0,95942.0,0.21199216]
[1746318247466,0.3592049,95943.0,95942.0,0.21966235]
[1746318247866,0.3592049,95943.0,95942.0,0.22066235]
[1746318249066,0.3592049,95943.0,95942.0,0.00867019]
[1746318252068,0.2412049,95943.0,95942.0,0.00867019]
[1746318253170,0.3592049,95943.0,95942.0,0.00867019]
[1746318253374,0.3592049,95943.0,95942.0,0.05430774]
[1746318255173,0.2412049,95943.0,95942.0,0.05430774]
[1746318256071,0.2412049,95943.0,95942.0,0.21325419]
[1746318259182,0.3592049,95943.0,95942.0,0.21325419]
[1746318259469,0.3592049,95943.0,95942.0,0.21225419]
[1746318259675,0.3602049,95943.0,95942.0,0.21225419]
[1746318259875,0.3622049,95943.0,95942.0,0.21225419]
[1746318260975,0.3622049,95943.0,95942.0,0.16661664]
[1746318261181,0.2442049,95943.0,95942.0,0.16661664]
[1746318261973,0.2442049,95943.0,95942.0,0.21227162]
[1746318264281,0.2442049,95943.0,95942.0,0.05332517]
[1746318269981,0.2442049,95943.0,95942.0,0.00767019]
[1746318270180,0.2442049,95943.0,95941.0,9.31e-05]
[1746318270181,0.2084071,95942.0,95941.0,9.31e-05]
[1746318270384,0.2403071,95942.0,95941.0,0.04577511]
[1746318270686,0.2403071,95942.0,95941.0,0.00791337]
[1746318271084,0.3583071,95942.0,95941.0,0.00791337]
[1746318271387,0.3593071,95942.0,95941.0,0.00791337]
[1746318271583,0.3603071,95942.0,95941.0,0.00791337]
[1746318272578,0.3623071,95942.0,95941.0,0.00791337]
[1746318276193,0.3623071,95942.0,95941.0,9.31e-05]
[1746318277489,0.2084136,95939.0,95938.0,0.16713763]
[1746318277804,0.5692136,95939.0,95938.0,0.16713763]
[1746318278191,0.6872136,95939.0,95938.0,0.16713763]
[1746318278493,0.7522136,95939.0,95938.0,0.16713763]
[1746318278696,0.75228788,95939.0,95938.0,0.16713763]
[1746318278893,0.75328788,95939.0,95938.0,0.16713763]
[1746318280092,0.75328788,95939.0,95938.0,0.15920051]
[1746318282202,0.2084158,95938.0,95937.0,0.00156352]
[1746318282594,0.2718158,95938.0,95937.0,0.00156352]
[1746318283201,0.3898158,95938.0,95937.0,0.00156352]
[1746318284501,0.3918158,95938.0,95937.0,0.00156352]
[1746318291501,0.2084462,95924.0,95923.0,0.15920051]
[1746318291696,0.20853118,95924.0,95923.0,1e-08]
[1746318292003,0.27853118,95924.0,95923.0,1e-08]
[1746318292198,0.39653118,95924.0,95923.0,1e-08]
[1746318292399,0.45783118,95924.0,95923.0,1e-08]
[1746318292605,0.2084593,95918.0,95917.0,0.21199216]
[1746318292814,0.5692593,95918.0,95917.0,0.21199216]
[1746318293105,0.6872593,95918.0,95917.0,0.21199216]
[1746318293603,0.7475593,95918.0,95917.0,0.21199216]
[1746318294196,0.7475593,95918.0,95917.0,0.21399216]
[1746318294706,0.7475593,95918.0,95917.0,0.21599216]
[1746318295407,0.7475593,95918.0,95917.0,0.004]
[1746318299802,0.7475593,95918.0,95917.0,0.0668]
[1746318300110,0.2074593,95918.0,95917.0,0.0648]
[1746318300606,0.2074593,95918.0,95917.0,0.0628]
[1746318301404,0.2605702,95920.0,95919.0,0.2084527]
[1746318301618,0.2605702,95920.0,95919.0,0.5692527]
[1746318314116,0.2605702,95920.0,95919.0,0.614905]
[1746318326725,0.2605702,95920.0,95919.0,0.254105]
[1746318326919,0.2605702,95920.0,95919.0,0.614905]
[1746318327321,0.2084517,95922.0,95921.0,0.2084506]
[1746318327521,0.2084185,95937.0,95936.0,0.208418]
[1746318327921,0.2387185,95937.0,95936.0,0.208418]
[1746318328224,0.2387185,95937.0,95936.0,0.28427678]
[1746318328726,0.2083999,95946.0,95945.0,0.2083984]
[1746318328924,0.2083999,95946.0,95945.0,0.5691984]
[1746318329126,0.2083999,95946.0,95945.0,0.6343984]
[1746318329328,0.2387999,95946.0,95945.0,0.6343984]
[1746318330125,0.2417999,95946.0,95945.0,0.6343984]
[1746318330338,0.2722999,95946.0,95945.0,0.6654984]
[1746318331026,0.2752999,95946.0,95945.0,0.6654984]
[1746318331722,0.2712999,95946.0,95945.0,0.6654984]
[1746318331927,0.2742999,95946.0,95945.0,0.6654984]
[1746318333029,0.2438999,95946.0,95945.0,0.6654984]
[1746318333329,0.2428999,95946.0,95945.0,0.6654984]
[1746318334023,0.2418999,95946.0,95945.0,0.6654984]
[1746318335029,0.2408999,95946.0,95945.0,0.6654984]
[1746318336832,0.2398999,95946.0,95945.0,0.6654984]
[1746318337028,0.2408999,95946.0,95945.0,0.6654984]
[1746318338228,0.2398999,95946.0,95945.0,0.6654984]
[1746318338530,0.2408999,95946.0,95945.0,0.6654984]
[1746318340733,0.2398999,95946.0,95945.0,0.6654984]
[1746318340931,0.2408999,95946.0,95945.0,0.6654984]
[1746318342934,0.2408999,95946.0,95945.0,0.4571]
[1746318343332,0.2398999,95946.0,95945.0,0.31546018]
[1746318343635,0.2408999,95946.0,95945.0,0.52385858]
[1746318346033,0.2408999,95946.0,95945.0,0.5691984]
[1746318346627,0.2408999,95946.0,95945.0,0.6000984]
[1746318346832,0.2408984,95946.0,95945.0,0.6000984]
[1746318347131,0.0325,95946.0,95945.0,0.3435224]
[1746318347336,0.0325,95946.0,95945.0,0.3736224]
[1746318347838,0.0015,95955.0,95954.0,0.208381]
[1746318348037,0.2083588,95965.0,95964.0,0.2083572]
[1746318349437,0.0302,95966.0,95965.0,0.2083572]
[1746318349630,0.238555,95966.0,95965.0,0.2083572]
[1746318350339,0.238555,95966.0,95965.0,0.2392572]
[1746318350837,0.247555,95966.0,95965.0,0.2392572]
[1746318352640,0.247555,95966.0,95965.0,0.24699568]
[1746318356141,0.247555,95966.0,95965.0,0.21609568]
[1746318357446,0.247555,95966.0,95965.0,0.57689568]
[1746318358748,0.247555,95966.0,95965.0,0.21609568]
[1746318358947,0.247555,95966.0,95965.0,0.57689568]
[1746318365554,0.247555,95966.0,95965.0,0.21609568]
[1746318365743,0.247555,95966.0,95965.0,0.57689568]
[1746318374567,0.247555,95966.0,95965.0,0.62250473]
[1746318375765,0.0392,95966.0,95965.0,0.62250473]
[1746318376569,0.0392,95966.0,95965.0,0.68500473]
[1746318377471,0.0392,95966.0,95965.0,0.63939568]
[1746318378361,0.0392,95966.0,95965.0,0.68501849]
[1746318380369,0.0392,95966.0,95965.0,0.89701065]
[1746318382769,0.0392,95966.0,95965.0,1.39701065]
[1746318384771,0.0392,95966.0,95965.0,1.18501849]
[1746318385271,0.2399465,95972.0,95971.0,0.2083441]
[1746318385667,0.2399465,95972.0,95971.0,0.25396691]
[1746318386970,0.0316,95972.0,95971.0,0.25396691]
[1746318387272,0.0316,95972.0,95971.0,0.28666691]
[1746318387673,0.0356,95972.0,95971.0,0.28666691]
[1746318387874,0.0396,95972.0,95971.0,0.65802831]
[1746318388471,0.008,95972.0,95971.0,0.65802831]
[1746318389678,0.008,95972.0,95971.0,0.69082831]
[1746318392270,0.0392,95972.0,95971.0,0.69082831]
[1746318397383,0.0392,95972.0,95971.0,0.65812831]
[1746318397885,0.0698,95972.0,95971.0,0.65812831]
[1746318398383,0.0698,95972.0,95971.0,0.87013194]
[1746318400079,0.278142,95972.0,95971.0,0.87013194]
[1746318400286,0.0698,95972.0,95971.0,0.87013194]
[1746318401889,0.0698,95972.0,95971.0,0.65812831]
[1746318408885,0.0658,95972.0,95971.0,0.65812831]
[1746318409074,0.05677927,95972.0,95971.0,0.65812831]
[1746318410592,0.05677927,95972.0,95971.0,0.44978421]
[1746318410890,0.05677927,95972.0,95971.0,0.65812831]
[1746318413494,0.26512127,95972.0,95971.0,0.65812831]
[1746318413998,0.05677927,95972.0,95971.0,0.65812831]
[1746318419596,0.04375866,95972.0,95971.0,0.29732831]
[1746318421303,0.25210066,95972.0,95971.0,0.28676691]
[1746318421492,0.25210066,95972.0,95971.0,0.25396691]
[1746318422199,0.37010066,95972.0,95971.0,0.25396691]
[1746318425002,0.37010066,95972.0,95971.0,0.61476691]
[1746318427601,0.37010066,95972.0,95971.0,0.5691441]
[1746318430198,0.37010066,95972.0,95971.0,0.3608]
[1746318431397,0.37010066,95972.0,95971.0,0.40647602]
[1746318431607,0.37010066,95972.0,95971.0,0.3608]
[1746318435107,0.208355,95966.0,95961.0,0.21215382]
[1746318435406,0.2083637,95962.0,95961.0,0.21215382]
[1746318435803,0.5691637,95962.0,95961.0,0.21215382]
[1746318436007,0.6733717,95962.0,95961.0,0.21215382]
[1746318436202,0.7913717,95962.0,95961.0,0.21215382]
[1746318437614,0.8019199,95962.0,95961.0,0.21215382]
[1746318437806,0.8029199,95962.0,95961.0,0.21215382]
[1746318438113,0.8029199,95962.0,95961.0,0.0368202]
[1746318438404,1.0423717,95962.0,95961.0,0.0368202]
[1746318438612,0.208381,95954.0,95953.0,0.26506404]
[1746318438999,0.312597,95954.0,95953.0,0.26506404]
[1746318439208,0.430597,95954.0,95953.0,0.26506404]
[1746318439518,0.463097,95954.0,95953.0,0.26506404]
[1746318439807,0.463097,95954.0,95953.0,0.26606404]
[1746318440908,0.463097,95954.0,95953.0,0.26706404]
[1746318441610,0.823897,95954.0,95953.0,0.002]
[1746318441812,0.823897,95954.0,95953.0,0.001]
[1746318442108,0.823897,95954.0,95948.0,0.00778789]
[1746318442109,0.2083919,95949.0,95948.0,0.00778789]
[1746318442308,0.2083962,95947.0,95944.0,0.2084018]
[1746318442499,0.2083962,95947.0,95942.0,0.2084065]
[1746318443201,0.3263962,95947.0,95942.0,0.2084065]
[1746318444011,0.3253962,95947.0,95942.0,0.2084065]
[1746318444208,0.3554962,95947.0,95942.0,0.2084065]
[1746318444410,0.3554962,95947.0,95946.0,0.0334]
[1746318444704,0.3554962,95947.0,95946.0,0.0344]
[1746318444905,0.3554962,95947.0,95946.0,0.04230782]
[1746318447005,0.3554962,95947.0,95946.0,0.04130782]
[1746318447514,0.3554962,95947.0,95946.0,0.04030782]
[1746318451118,0.3872962,95947.0,95946.0,0.04030782]
[1746318456418,0.2084049,95943.0,95942.0,0.09745782]
[1746318457324,0.2724049,95943.0,95942.0,0.09745782]
[1746318457526,0.2724049,95943.0,95942.0,0.09945782]
[1746318459130,0.2724049,95943.0,95942.0,0.10742012]
[1746318469233,0.2724049,95943.0,95942.0,0.0099623]
[1746318469631,0.2724049,95943.0,95942.0,0.05564348]
[1746318469931,0.2724049,95943.0,95942.0,0.0099623]
[1746318470237,0.2724049,95943.0,95942.0,0.0430623]
[1746318470537,0.2724049,95943.0,95942.0,0.08876489]
[1746318479139,0.2724049,95943.0,95942.0,0.29717199]
[1746318479635,0.2724049,95943.0,95942.0,0.08876489]
[1746318480739,0.2724049,95943.0,95942.0,0.29717199]
[1746318484542,0.2724049,95943.0,95942.0,0.08876489]
[1746318497359,0.2724049,95943.0,95942.0,0.0430623]
[1746318502665,0.2724049,95943.0,95942.0,0.08880994]
[1746318503166,0.3904049,95943.0,95942.0,0.08880994]
[1746318504062,0.2724049,95943.0,95942.0,0.08880994]
[1746318506367,0.2724049,95943.0,95942.0,0.0430623]
[1746318507078,0.2724049,95943.0,95942.0,0.08881154]
[1746318511180,0.2724049,95943.0,95942.0,0.29721864]
[1746318511482,0.2724049,95943.0,95942.0,0.08881154]
[1746318520189,0.2724049,95943.0,95942.0,0.29721864]
[1746318520488,0.2724049,95943.0,95942.0,0.08881154]
[1746318526589,0.2724049,95943.0,95942.0,0.0430623]
[1746318536505,0.2724049,95943.0,95942.0,0.0888093]
[1746318544506,0.2724049,95943.0,95942.0,0.0430623]
[1746318544802,0.2724049,95943.0,95942.0,0.08881251]
[1746318548711,0.2084093,95941.0,95940.0,0.14633527]
[1746318548898,0.2084093,95941.0,95940.0,0.20001099]
[1746318549612,0.2084093,95941.0,95940.0,0.15426033]
[1746318549813,0.2084093,95941.0,95940.0,0.15526033]
[1746318550208,0.2084093,95941.0,95940.0,0.15626033]
[1746318551615,0.2084093,95941.0,95940.0,0.00992506]
[1746318555722,0.2084093,95941.0,95940.0,0.21833656]
[1746318556618,0.0521032,95940.0,95935.0,0.21246007]
[1746318556821,0.2084419,95926.0,95916.0,0.033]
[1746318557023,0.2084419,95926.0,95920.0,0.00780078]
[1746318557321,0.3264419,95926.0,95920.0,0.00780078]
[1746318557525,0.3264419,95926.0,95925.0,0.13772049]
[1746318557716,0.2084527,95921.0,95920.0,0.31715095]
[1746318558113,0.3264527,95921.0,95920.0,0.31715095]
[1746318558621,0.3907527,95921.0,95920.0,0.31715095]
[1746318559226,0.3907527,95921.0,95920.0,0.31815095]
[1746318559227,0.3877527,95921.0,95920.0,0.31815095]
[1746318559617,0.4920047,95921.0,95920.0,0.31815095]
[1746318559819,0.4920047,95921.0,95920.0,0.31915095]
[1746318561927,0.4920047,95921.0,95920.0,0.002]
[1746318563127,0.3877527,95921.0,95920.0,0.002]
[1746318564919,0.3877527,95921.0,95920.0,0.001]
[1746318565121,0.3887527,95921.0,95920.0,0.001]
[1746318565324,0.2084636,95916.0,95915.0,0.00104258]
[1746318565525,0.5692636,95916.0,95915.0,0.00104258]
[1746318566136,0.6872636,95916.0,95915.0,0.00104258]
[1746318566328,0.7509636,95916.0,95915.0,0.00104258]
[1746318569935,0.76135719,95916.0,95915.0,0.00104258]
[1746318572946,0.7509636,95916.0,95915.0,0.00104258]
[1746318590960,0.7508077,95916.0,95915.0,0.00104258]
[1746318603560,0.7508077,95916.0,95915.0,0.20950838]
[1746318603764,0.7205077,95916.0,95915.0,0.20950838]
[1746318604173,0.6025077,95916.0,95915.0,0.21988114]
[1746318604469,0.2417077,95916.0,95915.0,0.21988114]
[1746318604859,0.002,95916.0,95915.0,0.63674113]
[1746318605161,0.07925559,95923.0,95922.0,0.2084506]
[1746318605367,0.07925559,95923.0,95922.0,0.5692506]
[1746318605568,0.07925559,95923.0,95922.0,0.92350259]
[1746318606361,0.08025559,95923.0,95922.0,0.67350259]
[1746318606756,0.08225559,95923.0,95922.0,0.67350259]
[1746318607260,0.08125559,95923.0,95922.0,0.67350259]
[1746318607458,0.10544227,95931.0,95930.0,0.2084332]
[1746318607660,0.10544227,95931.0,95930.0,0.5692332]
[1746318607856,0.10544227,95931.0,95930.0,0.6734772]
[1746318608362,0.10544227,95931.0,95930.0,0.7352772]
[1746318608769,0.2084209,95936.0,95930.0,0.7352772]
[1746318608770,0.2084209,95936.0,95935.0,0.2084223]
[1746318609569,0.2084209,95936.0,95935.0,0.2713223]
[1746318610168,0.2104209,95936.0,95935.0,0.2713223]
[1746318610573,0.2124209,95936.0,95935.0,0.2713223]
[1746318610877,0.2124209,95936.0,95935.0,0.2401223]
[1746318611174,0.2124209,95936.0,95930.0,0.3608]
[1746318611175,0.208444,95925.0,95924.0,0.0521113]
[1746318611364,0.2084462,95924.0,95923.0,0.2705484]
[1746318611567,0.2389462,95924.0,95923.0,0.2705484]
[1746318611762,0.2389462,95924.0,95923.0,0.3747964]
[1746318613164,0.2389462,95924.0,95923.0,0.3757964]
[1746318619075,0.2389462,95924.0,95923.0,0.2715484]
[1746318625673,0.2389462,95924.0,95923.0,0.2411484]
[1746318626878,0.2389462,95924.0,95923.0,0.2094484]
[1746318628476,0.2389462,95924.0,95923.0,0.001]
[1746318629579,0.2389462,95924.0,95923.0,0.2094484]
[1746318630075,0.0305,95924.0,95923.0,0.2094484]
[1746318630566,0.2389462,95924.0,95923.0,0.2094484]
[1746318630770,0.2712462,95924.0,95923.0,0.2094484]
[1746318632880,0.0628,95924.0,95923.0,0.2094484]
[1746318633078,0.0323,95924.0,95923.0,0.3444964]
[1746318633977,0.0328,95931.0,95930.0,0.2084332]
[1746318634276,0.0328,95943.0,95938.0,0.0521035]
[1746318634582,0.2412049,95943.0,95942.0,0.2084071]
[1746318636280,0.2442049,95943.0,95942.0,0.2084071]
[1746318636671,0.2412049,95943.0,95942.0,0.2084071]
[1746318636877,0.2422049,95943.0,95942.0,0.2084071]
[1746318637078,0.2432049,95943.0,95942.0,0.2084071]
[1746318641582,0.2084115,95941.0,95940.0,0.2084105]
[1746318642084,0.2414115,95941.0,95940.0,0.2084105]
[1746318642276,0.2721115,95941.0,95940.0,0.2084105]
[1746318642887,0.2731115,95941.0,95940.0,0.2084105]
[1746318643587,0.2741115,95941.0,95940.0,0.2084105]
[1746318646579,0.2084223,95936.0,95935.0,0.2605203]
[1746318646980,0.2716223,95936.0,95935.0,0.2605203]
[1746318648883,0.2084223,95935.0,95934.0,0.06444]
[1746318649280,0.2708223,95935.0,95934.0,0.06444]
[1746318650090,0.2708223,95935.0,95934.0,0.06544]
[1746318651190,0.2708223,95935.0,95934.0,0.2738645]
[1746318651389,0.2708223,95935.0,95934.0,0.2728645]
[1746318652883,0.0624,95935.0,95934.0,0.2728645]
[1746318653086,0.2708223,95935.0,95934.0,0.2084245]
[1746318655387,0.0624,95935.0,95934.0,0.2084245]
[1746318660501,0.0324,95935.0,95934.0,0.2084245]
[1746318663702,0.0324,95935.0,95934.0,0.2412245]
[1746318664302,0.2408223,95935.0,95934.0,0.2412245]
[1746318668196,0.0324,95935.0,95934.0,0.2412245]
[1746318669000,0.0324,95935.0,95934.0,0.0328]
[1746318669209,0.0324,95935.0,95934.0,0.2412245]
[1746318670699,0.0657,95935.0,95934.0,0.2412245]
[1746318671908,0.0657,95935.0,95934.0,0.45367501]
[1746318674199,0.2741223,95935.0,95934.0,0.45367501]
[1746318674400,0.0657,95935.0,95934.0,0.45367501]
[1746318675409,0.0657,95935.0,95934.0,0.2412245]
[1746318677201,0.0657,95935.0,95934.0,0.2712245]
[1746318678506,0.0657,95935.0,95934.0,0.2412245]
[1746318679014,0.0657,95935.0,95934.0,0.3059045]
[1746318684112,0.0657,95935.0,95934.0,0.2731045]
[1746318684313,0.2741223,95935.0,95934.0,0.2731045]
[1746318684516,0.2741223,95935.0,95934.0,0.06468]
[1746318685209,0.3921223,95935.0,95934.0,0.06468]
[1746318686115,0.3921223,95935.0,95934.0,0.2731045]
[1746318686908,0.3921223,95935.0,95934.0,0.06468]
[1746318687116,0.2084245,95934.0,95933.0,0.21255692]
[1746318687715,0.2691245,95934.0,95933.0,0.21255692]
[1746318688106,0.3871245,95934.0,95933.0,0.21255692]
[1746318688916,0.3871245,95934.0,95933.0,0.42098362]
[1746318690413,0.3871245,95934.0,95933.0,0.2084267]
[1746318697327,0.439231,95934.0,95931.0,0.0521076]
[1746318697622,0.439231,95934.0,95933.0,0.2084267]
[1746318698421,0.3871245,95934.0,95933.0,0.2084267]
[1746318712219,0.2691245,95934.0,95933.0,0.2084267]
[1746318714629,0.2084267,95933.0,95932.0,0.0319]
[1746318715128,0.2723267,95933.0,95932.0,0.0319]
[1746318716015,0.208431,95931.0,95930.0,0.78179012]
[1746318716621,0.0639,95933.0,95932.0,0.2084288]
[1746318717222,0.0639,95933.0,95932.0,0.2389288]
[1746318717417,0.0639,95933.0,95932.0,0.2716288]
[1746318717630,0.2723267,95933.0,95932.0,0.2716288]
[1746318720636,0.0639,95933.0,95932.0,0.2716288]
[1746318724828,0.0639,95933.0,95932.0,0.48418572]